{"text_format":"1","workbook":"xlsx","n_sheets":2,"sheets":["Bid Form","Last Page"],"not_rendered":{"charts":0,"images":0,"macros":1,"external_links":0,"defined_names":3,"comments":0,"pivot_tables":0},"unopened":[],"bounds":{"document_bytes":16777216,"sheet_cells":100000,"rows_first":2000,"rows_last":500,"rows_between":2000,"halvings":0,"cell_chars":16384,"cell_head_chars":4096},"cells_cut":0,"cells_raw":0,"read":"whole","date_system":"1900"}

{"sheet":"Bid Form","index":0,"n_rows":408,"n_cols":13,"rows_kept":408,"cut":false,"hidden":false,"merged":[[380,9,380,11],[34,7,34,9],[29,7,29,9],[24,0,24,5],[24,7,24,11],[160,7,160,9],[190,7,190,9],[195,7,195,9],[200,7,200,9],[205,7,205,9],[215,7,215,9],[220,7,220,9],[225,7,225,9],[230,7,230,9],[240,7,240,9],[245,7,245,9],[250,7,250,9],[255,7,255,9],[325,7,325,9],[330,7,330,9],[310,7,310,9],[265,7,265,9],[270,7,270,9],[275,7,275,9],[0,0,0,11],[2,5,2,11],[8,5,8,6],[4,5,4,6],[6,5,6,6],[23,7,23,11],[22,7,22,11],[11,0,11,11],[13,0,13,11],[22,0,22,5],[23,0,23,5],[12,0,12,11],[18,0,18,4],[18,5,18,11],[21,0,21,11],[19,0,19,9],[15,1,15,6],[15,7,15,10],[16,0,16,11],[17,3,17,7],[17,0,17,2],[17,8,17,11],[383,7,383,9],[399,0,399,5],[399,7,399,11],[402,0,402,5],[389,0,389,11],[393,0,393,5],[393,7,393,11],[396,0,396,5],[396,7,396,11],[405,0,405,5],[405,7,405,11],[384,7,384,9],[382,7,382,9],[44,7,44,9],[115,7,115,9],[120,7,120,9],[125,7,125,9],[140,7,140,9],[145,7,145,9],[60,7,60,9],[65,7,65,9],[110,7,110,9],[70,7,70,9],[75,7,75,9],[85,7,85,9],[90,7,90,9],[165,7,165,9],[170,7,170,9],[175,7,175,9],[180,7,180,9],[150,7,150,9],[155,7,155,9],[290,7,290,9],[295,7,295,9],[315,7,315,9],[300,7,300,9],[305,7,305,9],[320,7,320,9],[375,7,375,9],[340,7,340,9],[345,7,345,9],[350,7,350,9],[355,7,355,9],[365,7,365,9],[370,7,370,9],[335,7,335,9],[360,7,360,9],[185,7,185,9],[210,7,210,9],[235,7,235,9],[260,7,260,9],[285,7,285,9],[39,7,39,9],[55,7,55,9],[80,7,80,9],[105,7,105,9],[130,7,130,9],[135,7,135,9],[95,7,95,9],[100,7,100,9],[49,7,49,9],[280,7,280,9]]}
["BID FORM"]
[]
["PROJECT NAME:",null,null,null,null,"Lake Creek Ground Storage Tank Rehabilitation 2016"]
[]
["PROJECT LOCATION:",null,null,null,null,"Round Rock, Texas"]
[]
["OWNER:",null,null,null,null,"City of Round Rock, Texas"]
[]
["DATE:",null,null,null,null,"2016-10-03"]
[]
["Gentlemen:"]
["       Pursuant to the foregoing Notice to Bidders and Instructions to Bidders, the undersigned bidder hereby proposes to do all the Work, to furnish all necessary superintendence, labor, machinery, equipment, tools, materials, insurance and miscellaneous items, to complete all the Work on which he bids as provided by the attached Bid Documents, and as shown on the plans for the construction of"]
["Lake Creek Ground Storage Tank Rehabilitation 2016"]
["and binds himself on acceptance of this bid to execute the Agreement and bond for completing said Work within the time stated, for the following prices, to wit:"]
[]
[]
["      Any addenda issued will be posted with the Project Manual and/or Contract Documents on the"]
["City's website at ",null,null,"http://www.roundrocktexas.gov/utilitiescip",null,null,null,null,"by the close of business on "]
["2016-10-18",null,null,null,null,". Prior to submitting a bid, the bidder is responsible for determining if any"]
["addenda have been issued and for following any instructions in any addenda issued."]
[]
["Bidder acknowledges receipt of the following Addenda by listing Addendum \"number\" and \"date\"."]
[]
[]
[]
[null,null,null,null,null,null,"BASE BID "]
[]
["Bid Item",null,"Approx. Quantity",null,"Unit",null,"Item Description\nand Written Unit Price",null,null,"Unit Price",null,"Amount"]
[1,null,1,null,"LS",null,"Mobilization and Demobilization (maximum 5% of total bid.)"]
[null,null,null,null,null,null,"complete in place per ","Lump Sum"]
[null,null,null,null,null,"for",null,"dollars"]
[null,null,null,null,null,"and",null,"cents.",null,null,null,{"$f":"IF(M32>0,M32,\"    \")","v":"    "},{"$f":"C29*J32","v":0}]
[]
[2,null,1,null,"LS",null,"Furnish all materials, equipment, labor, superintendence and incidental work to provide a Tank Roof Replacement.  Work includes the demolition of existing tank roof structure and installing a new self supporting umbrella type roof system and other associated work as indicated on the drawings and specifications except where specifically covered by other bid items."]
[null,null,null,null,null,null,"complete in place per","Lump Sum"]
[null,null,null,null,null,"for",null,"dollars"]
[null,null,null,null,null,"and",null,"cents.",null,null,null,{"$f":"IF(M37>0,M37,\"    \")","v":"    "},{"$f":"C34*J37","v":0}]
[]
[3,null,1,null,"LS",null,"Furnish all materials, equipment, labor, superintendence and incidental work to abrasive blast, pressure wash, clean, prime and coat the Exterior of the existing 500,000-gallon GST, all appendages, ladder, vent, hatch, roof platform, railing, new roof as indicated on the drawings and specifications except where specifically covered by other bid items."]
[null,null,null,null,null,null,"complete in place per ","Lump Sum"]
[null,null,null,null,null,"for",null,"dollars"]
[null,null,null,null,null,"and",null,"cents.",null,null,null,{"$f":"IF(M42>0,M42,\"    \")","v":"    "},{"$f":"C39*J42","v":0}]
[]
[4,null,1,null,"LS",null,"Furnish all materials, equipment, labor, superintendence and incidental work to abrasive blast, clean, prime, stripe coat, and coat the Interior of the existing 500,000-gallon GST, all appendages, ladder, vent, hatch, weir box, new roof as indicated on the drawings and specifications except where specifically covered by other bid items."]
[null,null,null,null,null,null,"complete in place per ","Lump Sum"]
[null,null,null,null,null,"for",null,"dollars"]
[null,null,null,null,null,"and",null,"cents.",null,null,null,{"$f":"IF(M47>0,M47,\"    \")","v":"    "},{"$f":"C44*J47","v":0}]
[]
[5,null,1,null,"LS",null,"Furnish all materials, equipment, labor, superintendence and incidental work to Dehumidify and provide Dust Collection to the interior of the existing 500,000-gallon GST, including hoses, filters, etc., as indicated on the drawings and specifications except where specifically covered by other bid items."]
[null,null,null,null,null,null,"complete in place per","Lump Sum"]
[null,null,null,null,null,"for",null,"dollars"]
[null,null,null,null,null,"and",null,"cents.",null,null,null,{"$f":"IF(M52>0,M52,\"    \")","v":"    "},{"$f":"C49*J52","v":0}]
[]
[]
[]
[null,null,null,null,null,null,"complete in place per"]
[null,null,null,null,null,"for",null,"dollars"]
[null,null,null,null,null,"and",null,"cents.",null,null,null,{"$f":"IF(M58>0,M58,\"    \")","v":"    "},{"$f":"C55*J58","v":0}]
[]
[]
[null,null,null,null,null,null,"complete in place per "]
[null,null,null,null,null,"for",null,"dollars"]
[null,null,null,null,null,"and",null,"cents.",null,null,null,{"$f":"IF(M63>0,M63,\"    \")","v":"    "},{"$f":"C60*J63","v":0}]
[]
[]
[null,null,null,null,null,null,"complete in place per"]
[null,null,null,null,null,"for",null,"dollars"]
[null,null,null,null,null,"and",null,"cents.",null,null,null,{"$f":"IF(M68>0,M68,\"    \")","v":"    "},{"$f":"C65*J68","v":0}]
[]
[]
[null,null,null,null,null,null,"complete in place per"]
[null,null,null,null,null,"for",null,"dollars"]
[null,null,null,null,null,"and",null,"cents.",null,null,null,{"$f":"IF(M73>0,M73,\"    \")","v":"    "},{"$f":"C70*J73","v":0}]
[]
[]
[null,null,null,null,null,null,"complete in place per"]
[null,null,null,null,null,"for",null,"dollars"]
[null,null,null,null,null,"and",null,"cents.",null,null,null,{"$f":"IF(M78>0,M78,\"    \")","v":"    "},{"$f":"C75*J78","v":0}]
[]
[]
[null,null,null,null,null,null,"complete in place per "]
[null,null,null,null,null,"for",null,"dollars"]
[null,null,null,null,null,"and",null,"cents.",null,null,null,{"$f":"IF(M83>0,M83,\"    \")","v":"    "},{"$f":"C80*J83","v":0}]
[]
[]
[null,null,null,null,null,null,"complete in place per "]
[null,null,null,null,null,"for",null,"dollars"]
[null,null,null,null,null,"and",null,"cents.",null,null,null,{"$f":"IF(M88>0,M88,\"    \")","v":"    "},{"$f":"C85*J88","v":0}]
[]
[]
[null,null,null,null,null,null,"complete in place per"]
[null,null,null,null,null,"for",null,"dollars"]
[null,null,null,null,null,"and",null,"cents.",null,null,null,{"$f":"IF(M93>0,M93,\"    \")","v":"    "},{"$f":"C90*J93","v":0}]
[]
[]
[null,null,null,null,null,null,"complete in place per"]
[null,null,null,null,null,"for",null,"dollars"]
[null,null,null,null,null,"and",null,"cents.",null,null,null,{"$f":"IF(M98>0,M98,\"    \")","v":"    "},{"$f":"C95*J98","v":0}]
[]
[]
[null,null,null,null,null,null,"complete in place per"]
[null,null,null,null,null,"for",null,"dollars"]
[null,null,null,null,null,"and",null,"cents.",null,null,null,{"$f":"IF(M103>0,M103,\"    \")","v":"    "},{"$f":"C100*J103","v":0}]
[]
[]
[null,null,null,null,null,null,"complete in place per"]
[null,null,null,null,null,"for",null,"dollars"]
[null,null,null,null,null,"and",null,"cents.",null,null,null,{"$f":"IF(M108>0,M108,\"    \")","v":"    "},{"$f":"C105*J108","v":0}]
[]
[]
[null,null,null,null,null,null,"complete in place per "]
[null,null,null,null,null,"for",null,"dollars"]
[null,null,null,null,null,"and",null,"cents.",null,null,null,{"$f":"IF(M113>0,M113,\"    \")","v":"    "},{"$f":"C110*J113","v":0}]
[]
[]
[null,null,null,null,null,null,"complete in place per"]
[null,null,null,null,null,"for",null,"dollars"]
[null,null,null,null,null,"and",null,"cents.",null,null,null,{"$f":"IF(M118>0,M118,\"    \")","v":"    "},{"$f":"C115*J118","v":0}]
[]
[]
[null,null,null,null,null,null,"complete in place per"]
[null,null,null,null,null,"for",null,"dollars"]
[null,null,null,null,null,"and",null,"cents.",null,null,null,{"$f":"IF(M123>0,M123,\"    \")","v":"    "},{"$f":"C120*J123","v":0}]
[]
[]
[null,null,null,null,null,null,"complete in place per"]
[null,null,null,null,null,"for",null,"dollars"]
[null,null,null,null,null,"and",null,"cents.",null,null,null,{"$f":"IF(M128>0,M128,\"    \")","v":"    "},{"$f":"C125*J128","v":0}]
[]
[]
[null,null,null,null,null,null,"complete in place per"]
[null,null,null,null,null,"for",null,"dollars"]
[null,null,null,null,null,"and",null,"cents.",null,null,null,{"$f":"IF(M133>0,M133,\"    \")","v":"    "},{"$f":"C130*J133","v":0}]
[]
[]
[null,null,null,null,null,null,"complete in place per"]
[null,null,null,null,null,"for",null,"dollars"]
[null,null,null,null,null,"and",null,"cents.",null,null,null,{"$f":"IF(M138>0,M138,\"    \")","v":"    "},{"$f":"C135*J138","v":0}]
[]
[]
[null,null,null,null,null,null,"complete in place per "]
[null,null,null,null,null,"for",null,"dollars"]
[null,null,null,null,null,"and",null,"cents.",null,null,null,{"$f":"IF(M143>0,M143,\"    \")","v":"    "},{"$f":"C140*J143","v":0}]
[]
[]
[null,null,null,null,null,null,"complete in place per"]
[null,null,null,null,null,"for",null,"dollars"]
[null,null,null,null,null,"and",null,"cents.",null,null,null,{"$f":"IF(M148>0,M148,\"    \")","v":"    "},{"$f":"C145*J148","v":0}]
[]
[]
[null,null,null,null,null,null,"complete in place per"]
[null,null,null,null,null,"for",null,"dollars"]
[null,null,null,null,null,"and",null,"cents.",null,null,null,{"$f":"IF(M153>0,M153,\"    \")","v":"    "},{"$f":"C150*J153","v":0}]
[]
[]
[null,null,null,null,null,null,"complete in place per"]
[null,null,null,null,null,"for",null,"dollars"]
[null,null,null,null,null,"and",null,"cents.",null,null,null,{"$f":"IF(M158>0,M158,\"    \")","v":"    "},{"$f":"C155*J158","v":0}]
[]
[]
[null,null,null,null,null,null,"complete in place per"]
[null,null,null,null,null,"for",null,"dollars"]
[null,null,null,null,null,"and",null,"cents.",null,null,null,{"$f":"IF(M163>0,M163,\"    \")","v":"    "},{"$f":"C160*J163","v":0}]
[]
[]
[null,null,null,null,null,null,"complete in place per "]
[null,null,null,null,null,"for",null,"dollars"]
[null,null,null,null,null,"and",null,"cents.",null,null,null,{"$f":"IF(M168>0,M168,\"    \")","v":"    "},{"$f":"C165*J168","v":0}]
[]
[]
[null,null,null,null,null,null,"complete in place per"]
[null,null,null,null,null,"for",null,"dollars"]
[null,null,null,null,null,"and",null,"cents.",null,null,null,{"$f":"IF(M173>0,M173,\"    \")","v":"    "},{"$f":"C170*J173","v":0}]
[]
[]
[null,null,null,null,null,null,"complete in place per"]
[null,null,null,null,null,"for",null,"dollars"]
[null,null,null,null,null,"and",null,"cents.",null,null,null,{"$f":"IF(M178>0,M178,\"    \")","v":"    "},{"$f":"C175*J178","v":0}]
[]
[]
[null,null,null,null,null,null,"complete in place per"]
[null,null,null,null,null,"for",null,"dollars"]
[null,null,null,null,null,"and",null,"cents.",null,null,null,{"$f":"IF(M183>0,M183,\"    \")","v":"    "},{"$f":"C180*J183","v":0}]
[]
[]
[null,null,null,null,null,null,"complete in place per"]
[null,null,null,null,null,"for",null,"dollars"]
[null,null,null,null,null,"and",null,"cents.",null,null,null,{"$f":"IF(M188>0,M188,\"    \")","v":"    "},{"$f":"C185*J188","v":0}]
[]
[]
[null,null,null,null,null,null,"complete in place per "]
[null,null,null,null,null,"for",null,"dollars"]
[null,null,null,null,null,"and",null,"cents.",null,null,null,{"$f":"IF(M193>0,M193,\"    \")","v":"    "},{"$f":"C190*J193","v":0}]
[]
[]
[null,null,null,null,null,null,"complete in place per"]
[null,null,null,null,null,"for",null,"dollars"]
[null,null,null,null,null,"and",null,"cents.",null,null,null,{"$f":"IF(M198>0,M198,\"    \")","v":"    "},{"$f":"C195*J198","v":0}]
[]
[]
[null,null,null,null,null,null,"complete in place per"]
[null,null,null,null,null,"for",null,"dollars"]
[null,null,null,null,null,"and",null,"cents.",null,null,null,{"$f":"IF(M203>0,M203,\"    \")","v":"    "},{"$f":"C200*J203","v":0}]
[]
[]
[null,null,null,null,null,null,"complete in place per"]
[null,null,null,null,null,"for",null,"dollars"]
[null,null,null,null,null,"and",null,"cents.",null,null,null,{"$f":"IF(M208>0,M208,\"    \")","v":"    "},{"$f":"C205*J208","v":0}]
[]
[]
[null,null,null,null,null,null,"complete in place per"]
[null,null,null,null,null,"for",null,"dollars"]
[null,null,null,null,null,"and",null,"cents.",null,null,null,{"$f":"IF(M213>0,M213,\"    \")","v":"    "},{"$f":"C210*J213","v":0}]
[]
[]
[null,null,null,null,null,null,"complete in place per "]
[null,null,null,null,null,"for",null,"dollars"]
[null,null,null,null,null,"and",null,"cents.",null,null,null,{"$f":"IF(M218>0,M218,\"    \")","v":"    "},{"$f":"C215*J218","v":0}]
[]
[]
[null,null,null,null,null,null,"complete in place per"]
[null,null,null,null,null,"for",null,"dollars"]
[null,null,null,null,null,"and",null,"cents.",null,null,null,{"$f":"IF(M223>0,M223,\"    \")","v":"    "},{"$f":"C220*J223","v":0}]
[]
[]
[null,null,null,null,null,null,"complete in place per"]
[null,null,null,null,null,"for",null,"dollars"]
[null,null,null,null,null,"and",null,"cents.",null,null,null,{"$f":"IF(M228>0,M228,\"    \")","v":"    "},{"$f":"C225*J228","v":0}]
[]
[]
[null,null,null,null,null,null,"complete in place per"]
[null,null,null,null,null,"for",null,"dollars"]
[null,null,null,null,null,"and",null,"cents.",null,null,null,{"$f":"IF(M233>0,M233,\"    \")","v":"    "},{"$f":"C230*J233","v":0}]
[]
[]
[null,null,null,null,null,null,"complete in place per"]
[null,null,null,null,null,"for",null,"dollars"]
[null,null,null,null,null,"and",null,"cents.",null,null,null,{"$f":"IF(M238>0,M238,\"    \")","v":"    "},{"$f":"C235*J238","v":0}]
[]
[]
[null,null,null,null,null,null,"complete in place per "]
[null,null,null,null,null,"for",null,"dollars"]
[null,null,null,null,null,"and",null,"cents.",null,null,null,{"$f":"IF(M243>0,M243,\"    \")","v":"    "},{"$f":"C240*J243","v":0}]
[]
[]
[null,null,null,null,null,null,"complete in place per"]
[null,null,null,null,null,"for",null,"dollars"]
[null,null,null,null,null,"and",null,"cents.",null,null,null,{"$f":"IF(M248>0,M248,\"    \")","v":"    "},{"$f":"C245*J248","v":0}]
[]
[]
[null,null,null,null,null,null,"complete in place per"]
[null,null,null,null,null,"for",null,"dollars"]
[null,null,null,null,null,"and",null,"cents.",null,null,null,{"$f":"IF(M253>0,M253,\"    \")","v":"    "},{"$f":"C250*J253","v":0}]
[]
[]
[null,null,null,null,null,null,"complete in place per"]
[null,null,null,null,null,"for",null,"dollars"]
[null,null,null,null,null,"and",null,"cents.",null,null,null,{"$f":"IF(M258>0,M258,\"    \")","v":"    "},{"$f":"C255*J258","v":0}]
[]
[]
[null,null,null,null,null,null,"complete in place per"]
[null,null,null,null,null,"for",null,"dollars"]
[null,null,null,null,null,"and",null,"cents.",null,null,null,{"$f":"IF(M263>0,M263,\"    \")","v":"    "},{"$f":"C260*J263","v":0}]
[]
[]
[null,null,null,null,null,null,"complete in place per "]
[null,null,null,null,null,"for",null,"dollars"]
[null,null,null,null,null,"and",null,"cents.",null,null,null,{"$f":"IF(M268>0,M268,\"    \")","v":"    "},{"$f":"C265*J268","v":0}]
[]
[]
[null,null,null,null,null,null,"complete in place per"]
[null,null,null,null,null,"for",null,"dollars"]
[null,null,null,null,null,"and",null,"cents.",null,null,null,{"$f":"IF(M273>0,M273,\"    \")","v":"    "},{"$f":"C270*J273","v":0}]
[]
[]
[null,null,null,null,null,null,"complete in place per"]
[null,null,null,null,null,"for",null,"dollars"]
[null,null,null,null,null,"and",null,"cents.",null,null,null,{"$f":"IF(M278>0,M278,\"    \")","v":"    "},{"$f":"C275*J278","v":0}]
[]
[]
[null,null,null,null,null,null,"complete in place per"]
[null,null,null,null,null,"for",null,"dollars"]
[null,null,null,null,null,"and",null,"cents.",null,null,null,{"$f":"IF(M283>0,M283,\"    \")","v":"    "},{"$f":"C280*J283","v":0}]
[]
[]
[null,null,null,null,null,null,"complete in place per"]
[null,null,null,null,null,"for",null,"dollars"]
[null,null,null,null,null,"and",null,"cents.",null,null,null,{"$f":"IF(M288>0,M288,\"    \")","v":"    "},{"$f":"C285*J288","v":0}]
[]
[]
[null,null,null,null,null,null,"complete in place per "]
[null,null,null,null,null,"for",null,"dollars"]
[null,null,null,null,null,"and",null,"cents.",null,null,null,{"$f":"IF(M293>0,M293,\"    \")","v":"    "},{"$f":"C290*J293","v":0}]
[]
[]
[null,null,null,null,null,null,"complete in place per"]
[null,null,null,null,null,"for",null,"dollars"]
[null,null,null,null,null,"and",null,"cents.",null,null,null,{"$f":"IF(M298>0,M298,\"    \")","v":"    "},{"$f":"C295*J298","v":0}]
[]
[]
[null,null,null,null,null,null,"complete in place per"]
[null,null,null,null,null,"for",null,"dollars"]
[null,null,null,null,null,"and",null,"cents.",null,null,null,{"$f":"IF(M303>0,M303,\"    \")","v":"    "},{"$f":"C300*J303","v":0}]
[]
[]
[null,null,null,null,null,null,"complete in place per"]
[null,null,null,null,null,"for",null,"dollars"]
[null,null,null,null,null,"and",null,"cents.",null,null,null,{"$f":"IF(M308>0,M308,\"    \")","v":"    "},{"$f":"C305*J308","v":0}]
[]
[]
[null,null,null,null,null,null,"complete in place per"]
[null,null,null,null,null,"for",null,"dollars"]
[null,null,null,null,null,"and",null,"cents.",null,null,null,{"$f":"IF(M313>0,M313,\"    \")","v":"    "},{"$f":"C310*J313","v":0}]
[]
[]
[null,null,null,null,null,null,"complete in place per "]
[null,null,null,null,null,"for",null,"dollars"]
[null,null,null,null,null,"and",null,"cents.",null,null,null,{"$f":"IF(M318>0,M318,\"    \")","v":"    "},{"$f":"C315*J318","v":0}]
[]
[]
[null,null,null,null,null,null,"complete in place per"]
[null,null,null,null,null,"for",null,"dollars"]
[null,null,null,null,null,"and",null,"cents.",null,null,null,{"$f":"IF(M323>0,M323,\"    \")","v":"    "},{"$f":"C320*J323","v":0}]
[]
[]
[null,null,null,null,null,null,"complete in place per"]
[null,null,null,null,null,"for",null,"dollars"]
[null,null,null,null,null,"and",null,"cents.",null,null,null,{"$f":"IF(M328>0,M328,\"    \")","v":"    "},{"$f":"C325*J328","v":0}]
[]
[]
[null,null,null,null,null,null,"complete in place per"]
[null,null,null,null,null,"for",null,"dollars"]
[null,null,null,null,null,"and",null,"cents.",null,null,null,{"$f":"IF(M333>0,M333,\"    \")","v":"    "},{"$f":"C330*J333","v":0}]
[]
[]
[null,null,null,null,null,null,"complete in place per"]
[null,null,null,null,null,"for",null,"dollars"]
[null,null,null,null,null,"and",null,"cents.",null,null,null,{"$f":"IF(M338>0,M338,\"    \")","v":"    "},{"$f":"C335*J338","v":0}]
[]
[]
[null,null,null,null,null,null,"complete in place per "]
[null,null,null,null,null,"for",null,"dollars"]
[null,null,null,null,null,"and",null,"cents.",null,null,null,{"$f":"IF(M343>0,M343,\"    \")","v":"    "},{"$f":"C340*J343","v":0}]
[]
[]
[null,null,null,null,null,null,"complete in place per"]
[null,null,null,null,null,"for",null,"dollars"]
[null,null,null,null,null,"and",null,"cents.",null,null,null,{"$f":"IF(M348>0,M348,\"    \")","v":"    "},{"$f":"C345*J348","v":0}]
[]
[]
[null,null,null,null,null,null,"complete in place per"]
[null,null,null,null,null,"for",null,"dollars"]
[null,null,null,null,null,"and",null,"cents.",null,null,null,{"$f":"IF(M353>0,M353,\"    \")","v":"    "},{"$f":"C350*J353","v":0}]
[]
[]
[null,null,null,null,null,null,"complete in place per"]
[null,null,null,null,null,"for",null,"dollars"]
[null,null,null,null,null,"and",null,"cents.",null,null,null,{"$f":"IF(M358>0,M358,\"    \")","v":"    "},{"$f":"C355*J358","v":0}]
[]
[]
[null,null,null,null,null,null,"complete in place per"]
[null,null,null,null,null,"for",null,"dollars"]
[null,null,null,null,null,"and",null,"cents.",null,null,null,{"$f":"IF(M363>0,M363,\"    \")","v":"    "},{"$f":"C360*J363","v":0}]
[]
[]
[null,null,null,null,null,null,"complete in place per "]
[null,null,null,null,null,"for",null,"dollars"]
[null,null,null,null,null,"and",null,"cents.",null,null,null,{"$f":"IF(M368>0,M368,\"    \")","v":"    "},{"$f":"C365*J368","v":0}]
[]
[]
[null,null,null,null,null,null,"complete in place per"]
[null,null,null,null,null,"for",null,"dollars"]
[null,null,null,null,null,"and",null,"cents.",null,null,null,{"$f":"IF(M373>0,M373,\"    \")","v":"    "},{"$f":"C370*J373","v":0}]
[]
[]
[null,null,null,null,null,null,"complete in place per"]
[null,null,null,null,null,"for",null,"dollars"]
[null,null,null,null,null,"and",null,"cents.",null,null,null,{"$f":"IF(M378>0,M378,\"    \")","v":"    "},{"$f":"C375*J378","v":0}]
[]
[]
[null,null,null,null,null,null,"TOTAL BASE BID (Items 1 thru",5,")",{"$f":"SUM(L32:L380)","v":0}]
[]
[null,null,null,null,null,"Materials:"]
[null,null,null,null,null,"All Other Charges:"]
[null,null,null,null,null,"* Total:",null,{"$f":"SUM(H383:J384)","v":0}]
[]
[]
["* Note: This total must be the same amount as shown above for \"Total Base Bid\""]
[]
["If this bid is accepted, the undersigned agrees to execute the Agreement and provide necessary bonds and insurance certification as per the Instructions to Bidders.\n\nThe undersigned certifies that the bid prices contained in the bid have been carefully checked and are submitted as correct and final.  The Owner reserves the right to reject any or all bids and may waive any informalities or technicalities."]
[]
["Respectfully Submitted,"]
[]
[]
["Signature"]
[]
[]
["Print Name",null,null,null,null,null,null,"Address"]
[]
[]
["Title",null,null,null,null,null,null,"Telephone"]
[]
[]
["Name of Firm"]
[]
[]
["Date",null,null,null,null,null,null,"Secretary, if Bidder is a "]
[null,null,null,null,null,null,null,"Corporation"]

{"sheet":"Last Page","index":1,"n_rows":29,"n_cols":13,"rows_kept":29,"cut":false,"hidden":false,"merged":[[3,7,3,9],[1,9,1,11],[20,0,20,5],[20,7,20,11],[23,0,23,5],[26,0,26,5],[26,7,26,11],[4,7,4,9],[5,7,5,9],[10,0,10,11],[14,0,14,5],[14,7,14,11],[17,0,17,5],[17,7,17,11]]}
[]
[null,null,null,null,null,null,"TOTAL BASE BID (Items 1 thru",5,")",{"$f":"IF(M2>0,M2,\"        \")","v":"        "},null,null,{"$f":"SUM('Bid Form'!L32:L380)","v":0}]
[]
[null,null,null,null,null,"Materials:"]
[null,null,null,null,null,"All Other Charges:"]
[null,null,null,null,null,"* Total:",null,{"$f":"IF(M6>0,M6,\"         \")","v":"         "},null,null,null,null,{"$f":"SUM(H4:J5)","v":0}]
[]
[]
["* Note: This total must be the same amount as shown above for \"Total Base Bid\""]
[]
["If this bid is accepted, the undersigned agrees to execute the Agreement and provide necessary bonds and insurance certification as per the Instructions to Bidders.\n\nThe undersigned certifies that the bid prices contained in the bid have been carefully checked and are submitted as correct and final.  The Owner reserves the right to reject any or all bids and may waive any informalities or technicalities."]
[]
["Respectfully Submitted,"]
[]
[]
["Signature"]
[]
[]
["Print Name",null,null,null,null,null,null,"Address"]
[]
[]
["Title",null,null,null,null,null,null,"Telephone"]
[]
[]
["Name of Firm"]
[]
[]
["Date",null,null,null,null,null,null,"Secretary, if Bidder is a "]
[null,null,null,null,null,null,null,"Corporation"]